bitfinex/quotes_ETHUSD_20240916
["timestamp","ask_amount","ask_price","bid_price","bid_amount"]
[1726521278825,6.7247245,2286.8,2286.4,6.83111]
[1726521279036,6.7247245,2286.8,2286.5,0.12383441]
[1726521282684,0.0375045,2286.8,2286.5,4.49730441]
[1726521287293,4.4104345,2286.8,2286.5,0.12383441]
[1726521287455,2.4672,2286.7,2286.5,0.12383441]
[1726521297091,2.4672,2286.7,2286.3,8.74752]
[1726521297292,2.4672,2286.7,2286.4,0.12385679]
[1726521297721,6.84032,2286.7,2286.4,0.12385679]
[1726521299221,2.4672,2286.7,2286.4,0.12385679]
[1726521299426,2.4672,2286.7,2286.4,4.49752679]
[1726521300834,4.37344,2286.6,2286.4,0.12385679]
[1726521301138,4.37381,2286.4,2286.1,0.91397401]
[1726521301322,0.03000005,2286.3,2286.0,0.91397401]
[1726521301625,0.03000005,2286.3,2286.2,0.12412259]
[1726521301845,6.80637,2286.2,2286.1,0.12425324]
[1726521301995,6.80637,2286.2,2285.8,3.63186102]
[1726521301996,4.37429,2286.1,2285.8,0.91397401]
[1726521302195,6.83685005,2286.0,2285.5,5.28928401]
[1726521302391,6.83685005,2286.0,2285.6,2.76245491]
[1726521302601,6.80685,2286.0,2285.7,1.10554675]
[1726521302807,6.80685,2286.0,2285.5,5.28928401]
[1726521303028,6.80685,2286.0,2285.6,2.76445206]
[1726521303229,2.4323,2286.0,2285.6,4.37518]
[1726521303441,6.66276,2286.3,2285.7,5.73506108]
[1726521303592,4.37417,2286.2,2285.7,2.807]
[1726521303944,2.2888,2286.1,2285.6,5.28906401]
[1726521304138,6.66307,2286.1,2285.7,1.106429]
[1726521304446,6.82335,2286.3,2285.8,2.3732]
[1726521304791,11.19735,2286.3,2285.8,2.3732]
[1726521304995,11.19739,2286.3,2285.8,2.3732]
[1726521305206,6.82335,2286.3,2285.8,2.3732]
[1726521305543,4.37395,2286.3,2285.8,6.83543072]
[1726521305735,4.37395,2286.3,2285.8,2.3732]
[1726521306751,4.37395,2286.3,2285.8,6.74802]
[1726521308363,6.65899,2286.5,2286.0,2.3518]
[1726521308994,4.37374,2286.4,2286.0,2.3518]
[1726521310809,2.2854,2286.5,2286.1,0.55]
[1726521312409,6.6589,2286.5,2286.1,0.55]
[1726521314154,6.6589,2286.5,2286.0,6.72614]
[1726521314155,4.37396,2286.3,2286.0,2.3518]
[1726521314373,8.74794,2286.3,2286.0,2.3518]
[1726521315032,8.74796,2286.3,2286.0,2.3518]
[1726521315214,4.37396,2286.3,2286.0,2.3518]
[1726521315414,4.37396,2286.3,2285.6,10.69078401]
[1726521315415,6.87355,2286.1,2285.6,10.69078401]
[1726521315717,6.87355,2286.1,2285.7,1.09895069]
[1726521315917,6.87355,2286.1,2285.6,9.77681]
[1726521316113,6.87355,2286.1,2285.7,1.09904752]
[1726521316521,6.87355,2286.1,2285.8,0.12479855]
[1726521316636,6.87355,2286.1,2285.6,9.77681]
[1726521316840,4.37456,2286.0,2285.7,0.67492925]
[1726521318038,2.4992,2286.1,2285.7,5.04989925]
[1726521318241,4.37402,2286.3,2285.9,4.92464]
[1726521318439,8.74804,2286.3,2285.9,0.55]
[1726521318769,8.74799,2286.3,2286.0,0.1245372]
[1726521320167,8.74794,2286.3,2286.0,0.1245372]
[1726521321238,4.37408,2286.2,2286.0,0.1245372]
[1726521327430,4.3739,2286.3,2286.0,0.1245372]
[1726521327770,4.37409,2286.2,2286.0,0.1245372]
[1726521329388,4.37426,2286.1,2286.0,0.1245372]
[1726521330883,13.70090763,2286.1,2286.0,0.1245372]
[1726521331045,13.70090763,2286.1,2285.3,1.37096102]
[1726521331046,4.3747,2285.9,2285.3,3.36007401]
[1726521331251,7.07524763,2286.1,2285.4,1.09811186]
[1726521331252,6.19857863,2285.5,2285.4,1.09811186]
[1726521331446,10.57398863,2285.5,2285.4,0.12534846]
[1726521331670,4.37579,2285.3,2285.2,1.09644268]
[1726521331998,6.6268,2285.6,2285.2,1.22205264]
[1726521332162,4.37542,2285.5,2285.2,3.66815264]
[1726521332987,4.3756,2285.4,2285.2,3.66815264]
[1726521333188,1.28253886,2285.5,2285.2,1.22205264]
[1726521333388,4.37553,2285.5,2285.2,0.12560996]
[1726521333704,4.37553,2285.5,2285.1,0.55]
[1726521333863,4.37553,2285.5,2285.2,0.12560996]
[1726521334482,4.37561,2285.4,2285.2,0.12560996]
[1726521334724,8.75133,2285.4,2284.9,0.55]
[1726521334929,4.37581,2285.3,2285.0,0.12587149]
[1726521335232,2.4206,2285.2,2285.0,0.12587149]
[1726521335538,12.70490419,2285.1,2285.0,0.12587149]
[1726521335685,8.75245,2285.1,2284.5,6.6589]
[1726521335889,8.75245,2285.1,2284.6,0.12216052]
[1726521336090,8.75247,2285.1,2284.6,0.12216052]
[1726521336286,4.37637,2285.0,2284.6,0.12216052]
[1726521338535,8.75249,2285.1,2284.6,0.12216052]
[1726521339631,4.37636,2285.0,2284.6,0.12216052]
[1726521341425,9.4081307,2285.0,2284.6,0.12216052]
[1726521341629,4.37658,2284.9,2284.6,0.12216052]
[1726521341927,5.0316407,2285.0,2284.6,0.12216052]
[1726521342262,4.37677,2284.8,2284.6,0.12216052]
[1726521342565,4.37677,2284.8,2284.4,0.55]
[1726521342764,4.37677,2284.8,2284.7,0.12234553]
[1726521342951,2.3334,2284.9,2284.4,4.92748]
[1726521343152,2.3334,2284.9,2284.7,0.12234553]
[1726521343463,6.71004,2284.9,2284.8,0.12221472]
[1726521343637,6.71004,2284.9,2284.4,4.92748]
[1726521343843,6.71004,2284.9,2284.5,0.12260718]
[1726521345669,4.37675,2284.8,2284.5,0.12260718]
[1726521346458,6.70996,2284.9,2284.5,0.12260718]
[1726521349977,4.37656,2284.9,2284.6,2.2559]
[1726521350382,4.37656,2284.9,2284.7,0.12234553]
[1726521356907,4.37675,2284.8,2284.4,7.35341]
[1726521357203,6.76007,2285.1,2284.8,2.4259]
[1726521357408,4.37627,2285.1,2284.8,2.4259]
[1726521357616,4.37627,2285.1,2284.9,0.12314447]
[1726521357994,6.77153,2285.3,2285.0,0.12301369]
[1726521358246,11.14749,2285.3,2285.0,0.12301369]
[1726521358446,11.14749,2285.3,2284.8,6.80257]
[1726521358650,11.14749,2285.3,2285.1,0.12288291]
[1726521358651,4.37598,2285.2,2285.1,0.12288291]
[1726521358835,4.37598,2285.2,2284.8,6.80257]
[1726521359037,4.37598,2285.2,2285.1,0.12288291]
[1726521359242,4.37598,2285.2,2284.8,6.80257]
[1726521359845,4.37598,2285.2,2284.9,0.12314447]
[1726521360412,6.77153,2285.3,2284.9,4.49966447]
[1726521360413,2.3956,2285.3,2284.9,4.49966447]
[1726521360637,4.3758,2285.3,2285.1,2.3582]
[1726521360907,4.3758,2285.3,2285.2,0.12275215]
[1726521361551,8.7516,2285.3,2285.2,0.12275215]
[1726521361843,4.37601,2285.2,2284.8,0.55]
[1726521362251,4.37601,2285.2,2284.8,4.92673]
[1726521363324,8.75171,2285.3,2284.8,4.92673]
[1726521363523,8.7517,2285.3,2284.9,2.3904]
[1726521366526,8.75173,2285.3,2284.9,2.3904]
[1726521367258,4.37601,2285.2,2284.9,2.3904]
[1726521369028,6.20072404,2285.4,2284.9,6.76693]
[1726521369262,10.57650404,2285.4,2284.9,6.76693]
[1726521369418,4.37581,2285.3,2284.9,2.3904]
[1726521372040,4.37581,2285.3,2284.9,6.76694]
[1726521372628,4.37563,2285.4,2285.0,0.55]
[1726521372816,2.4,2285.7,2285.1,2.4727]
[1726521373018,7.4,2285.8,2285.4,11.2237]
[1726521373227,6.77465,2285.9,2285.4,6.8482]
[1726521373724,8.59974404,2285.9,2285.4,6.8482]
[1726521375617,8.59974404,2285.9,2285.4,11.22366]
[1726521376544,8.59974404,2285.9,2285.5,0.12217931]
[1726521377860,2.4,2285.9,2285.5,4.49756931]
[1726521378070,4.3746,2286.0,2285.5,4.49756931]
[1726521378921,4.3746,2286.0,2285.6,4.37519]
[1726521379121,5.531121,2286.0,2285.7,0.12168315]
[1726521379544,1.156521,2286.0,2285.7,0.12168315]
[1726521379860,2.98161504,2286.0,2285.7,0.12168315]
[1726521380673,7.35606504,2286.0,2285.7,0.12168315]
[1726521383952,6.19954404,2286.0,2285.7,0.12168315]
[1726521386166,6.81541,2286.3,2285.8,4.37475]
[1726521386464,4.37334,2286.6,2285.7,2.51898315]
[1726521386465,4.37339,2286.6,2286.0,2.3973]
[1726521386669,4.37356,2286.5,2286.0,6.7716]
[1726521386960,4.37356,2286.5,2286.1,0.12116044]
[1726521387165,4.37368,2286.4,2286.1,0.12116044]
[1726521389059,1.82509404,2286.3,2286.1,0.12116044]
[1726521389362,4.37368,2286.4,2286.1,0.12116044]
[1726521395239,8.66331404,2286.5,2286.1,0.12116044]
[1726521395430,8.66331404,2286.5,2286.1,4.49541044]
[1726521397244,6.19861404,2286.5,2286.1,4.49541044]
[1726521398049,4.37341,2286.6,2286.1,4.49534044]
[1726521398559,4.37321,2286.7,2286.3,2.4142]
[1726521398758,4.37321,2286.7,2286.4,0.12008713]
[1726521400485,4.40321005,2286.7,2286.4,0.12008713]
[1726521400843,4.37321,2286.7,2286.4,0.12008713]
[1726521401870,4.37331,2286.6,2286.4,0.12008713]
[1726521402851,6.19840404,2286.6,2286.4,0.12008713]
[1726521403271,11.07738,2286.5,2286.4,0.12008713]
[1726521403694,11.07738,2286.5,2286.1,2.4545]
[1726521403695,4.37373,2286.4,2286.1,2.4545]
[1726521403868,1.82509404,2286.3,2286.1,2.4545]
[1726521404078,8.52898404,2286.5,2286.1,2.4545]
[1726521404285,3.49548739,2286.8,2286.3,2.3268]
[1726521404477,4.37313,2286.7,2286.3,6.70059]
[1726521405277,4.4104345,2286.8,2286.4,4.37357]
[1726521406483,4.4104345,2286.8,2286.5,0.11980314]
[1726521408601,1.82509404,2286.7,2286.5,0.11980314]
[1726521408768,1.82509404,2286.7,2286.3,6.70066]
[1726521408969,1.82509404,2286.7,2286.4,0.11993376]
[1726521410205,4.4104345,2286.8,2286.5,2.2815]
[1726521410408,4.4104345,2286.8,2286.6,0.11967254]
[1726521413380,8.7834445,2286.8,2286.6,0.11967254]
[1726521414216,6.19820404,2286.7,2286.6,0.11967254]
[1726521414417,4.37353,2286.5,2286.2,0.55]
[1726521414574,6.19862404,2286.5,2286.3,0.12006438]
[1726521414777,6.19862404,2286.5,2286.1,2.3338]
[1726521414778,8.60152404,2286.5,2286.1,2.3338]
[1726521414973,10.57221404,2286.5,2286.2,0.12019502]
[1726521415180,4.37369,2286.4,2286.2,0.12019502]
[1726521415711,6.19861404,2286.5,2286.2,0.12019502]
[1726521416512,10.57223404,2286.5,2286.2,0.12019502]
[1726521417578,6.19861404,2286.5,2286.2,0.12019502]
[1726521417912,10.57220404,2286.5,2286.2,0.12019502]
[1726521418415,10.57220404,2286.5,2286.2,0.11884252]
[1726521420975,7.26294406,2286.5,2286.2,0.11884252]
[1726521421414,4.37339,2286.6,2286.3,4.12339404]
[1726521421617,8.74686,2286.6,2286.4,0.11982554]
[1726521421855,4.37349,2286.5,2286.4,0.11982554]
[1726521422582,8.74682,2286.6,2286.4,0.11982554]
[1726521424079,8.74679,2286.6,2286.4,0.11982554]
[1726521424495,4.37339,2286.6,2286.4,0.11982554]
[1726521425379,4.37314,2286.7,2286.4,0.11982554]
[1726521426140,4.37332,2286.6,2286.4,0.11982554]
[1726521430490,4.40332005,2286.6,2286.4,0.11982554]
[1726521431794,4.37314,2286.7,2286.4,0.11982554]
[1726521432493,8.77638005,2286.7,2286.4,0.11982554]
[1726521432893,4.37332,2286.6,2286.4,0.11982554]
[1726521433733,4.40332005,2286.6,2286.4,0.11982554]
[1726521436909,6.83172005,2286.6,2286.4,0.11982554]
[1726521437231,8.18427105,2286.6,2286.5,0.11972199]
[1726521437397,6.83172005,2286.6,2286.2,4.92406]
[1726521437721,4.37351,2286.5,2286.3,0.11998323]
[1726521438101,4.37351,2286.5,2286.2,0.55]
[1726521438308,4.37351,2286.5,2286.4,0.1198037]
[1726521438531,4.37351,2286.5,2286.3,0.11993435]
[1726521438728,6.19860404,2286.5,2286.3,0.11993435]
[1726521438898,6.19860404,2286.5,2286.2,0.55]
[1726521439102,6.19860404,2286.5,2286.4,0.11980373]
[1726521439297,6.19860404,2286.5,2286.3,0.11993435]
[1726521439610,6.19860404,2286.5,2286.4,0.11980373]
[1726521439810,6.19860404,2286.5,2286.2,0.55]
[1726521440237,6.19860404,2286.5,2286.3,0.11993435]
[1726521440599,6.19860404,2286.5,2286.4,0.11980373]
[1726521440946,6.19860404,2286.5,2286.2,0.55]
[1726521441237,6.19860404,2286.5,2286.3,0.11993435]
[1726521441447,6.19860404,2286.5,2286.2,0.55]
[1726521441605,6.19860404,2286.5,2286.3,0.11993435]
[1726521441808,6.19860404,2286.5,2286.2,0.55]
[1726521442039,6.19860404,2286.5,2286.3,0.11993435]
[1726521442341,6.19860404,2286.5,2286.2,0.55]
[1726521442550,6.19860404,2286.5,2286.4,0.11980373]
[1726521442706,6.19860404,2286.5,2286.3,0.11993435]
[1726521443037,4.37351,2286.5,2286.2,0.55]
[1726521443242,4.37351,2286.5,2286.3,0.11996142]
[1726521443445,4.37351,2286.5,2286.2,0.55]
[1726521443627,4.37351,2286.5,2286.3,0.11996142]
[1726521443840,7.06430445,2286.5,2286.1,2.4831]
[1726521444129,4.3737,2286.4,2286.2,0.12009206]
[1726521444365,11.43795445,2286.5,2286.2,0.12009206]
[1726521446627,5.23921041,2286.5,2286.2,0.12009206]
[1726521446841,4.37351,2286.5,2286.2,0.12009206]
[1726521448622,8.7465,2286.7,2286.2,4.49415206]
[1726521448821,4.37325,2286.7,2286.3,2.441]
[1726521449020,8.74651,2286.7,2286.4,0.11983079]
[1726521449357,8.74645,2286.7,2286.4,0.11983079]
[1726521449549,4.37322,2286.7,2286.4,0.11983079]
[1726521450749,8.74643,2286.7,2286.4,0.11983079]
[1726521451114,4.37321,2286.7,2286.4,0.11983079]
[1726521451314,8.74642,2286.7,2286.4,0.11983079]
[1726521451515,4.37334,2286.6,2286.4,0.11983079]
[1726521452142,4.40334005,2286.6,2286.4,0.11983079]
[1726521453155,4.37334,2286.6,2286.4,0.11983079]
[1726521455026,4.37349,2286.5,2286.4,0.11983079]
[1726521455217,6.19858404,2286.5,2286.4,0.11983079]
[1726521455444,7.7705355,2286.5,2286.1,2.3278]
[1726521455661,4.37371,2286.4,2286.2,0.12003792]
[1726521457527,4.40371005,2286.4,2286.2,0.12003792]
[1726521457761,5.58813455,2286.4,2286.2,0.12003792]
[1726521460730,4.37371,2286.4,2286.2,0.12003792]
[1726521462479,0.0375045,2286.8,2286.3,2.4603]
[1726521462720,4.4104245,2286.8,2286.4,7.80182924]
[1726521462965,4.4104245,2286.8,2286.5,3.56356482]
[1726521463186,8.7834445,2286.8,2286.5,2.4603]
[1726521463361,8.7834445,2286.8,2286.6,0.11956958]
[1726521463744,6.19820404,2286.7,2286.6,0.11956958]
[1726521463949,7.25906689,2286.7,2286.6,0.11956958]
[1726521465990,5.89820404,2286.7,2286.6,0.11956958]
[1726521466486,10.27131404,2286.7,2286.6,0.11956958]
[1726521466685,12.68090404,2286.7,2286.4,0.55]
[1726521466863,12.68090404,2286.7,2286.5,0.11970018]
[1726521467061,8.30770404,2286.7,2286.5,0.11970018]
[1726521467850,12.68091404,2286.7,2286.5,0.11970018]
[1726521468083,8.30770404,2286.7,2286.5,0.11970018]
[1726521468551,12.68091404,2286.7,2286.5,0.11970018]
[1726521468956,8.77660005,2286.6,2286.5,0.11970018]
[1726521469255,8.77660005,2286.6,2286.1,0.91397401]
[1726521469256,4.37383,2286.4,2286.1,2.4895]
[1726521469594,6.19892404,2286.4,2286.2,0.12009206]
[1726521470093,4.37388,2286.3,2286.2,0.12009206]
[1726521471486,4.4105845,2286.8,2286.4,2.3674]
[1726521471804,4.37322,2286.7,2286.5,0.11970018]
[1726521473800,10.60872854,2286.8,2286.5,0.11970018]
[1726521474661,4.37314,2286.7,2286.5,0.11970018]
[1726521477084,6.19839404,2286.6,2286.5,0.11970018]
[1726521477402,6.19839404,2286.6,2286.3,0.55]
[1726521477588,1.82509404,2286.6,2286.5,0.11970018]
[1726521477800,8.74641,2286.7,2286.4,0.11983079]
[1726521478005,8.74641,2286.7,2286.5,0.11965055]
[1726521478520,8.74641,2286.7,2286.6,0.11951994]
[1726521478521,8.74635,2286.7,2286.6,0.11951994]
[1726521478678,10.57144404,2286.7,2286.6,0.11951994]
[1726521478880,2.372,2286.6,2286.2,2.2621]
[1726521479084,6.19886404,2286.4,2286.3,0.11991179]
[1726521479306,6.19886404,2286.4,2286.0,6.86336]
[1726521479509,6.19886404,2286.4,2286.3,0.11991179]
[1726521479680,6.19886404,2286.4,2286.0,6.86336]
[1726521480018,6.19886404,2286.4,2286.1,0.12017307]
[1726521481785,8.74716,2286.5,2286.1,0.12017307]
[1726521484593,8.74711,2286.5,2286.1,4.49440307]
[1726521484897,4.37353,2286.5,2286.1,4.49440307]
[1726521485091,8.74718,2286.5,2286.1,0.12017307]
[1726521486913,4.37397,2286.3,2286.1,0.12017307]
[1726521487241,6.19895404,2286.4,2286.1,0.12017307]
[1726521488314,4.37389,2286.3,2286.1,0.12017307]
[1726521488540,8.74814,2286.2,2286.1,0.12017307]
[1726521488836,4.37407,2286.2,2286.1,0.12017307]
[1726521489034,4.37407,2286.2,2285.8,6.75453]
[1726521489235,4.37407,2286.2,2286.1,0.12017307]
[1726521489712,4.37407,2286.2,2285.8,6.75453]
[1726521489900,4.37407,2286.2,2286.1,0.12017307]
[1726521490230,4.37407,2286.2,2285.8,6.75453]
[1726521490795,4.37407,2286.2,2285.9,0.1204344]
[1726521491835,6.74917,2286.3,2285.9,0.1204344]
[1726521492141,11.12316,2286.3,2285.9,0.1204344]
[1726521492511,4.3741,2286.2,2285.9,0.1204344]
[1726521493223,6.74917,2286.3,2285.9,0.1204344]
[1726521493224,8.74724,2286.5,2286.0,2.4977]
[1726521493424,4.37359,2286.5,2286.1,4.37416]
[1726521493742,4.37359,2286.5,2286.1,4.49443681]
[1726521493940,8.74718,2286.5,2286.1,4.49443681]
[1726521494145,4.37359,2286.5,2286.1,4.49443681]
[1726521494634,6.67991,2286.6,2286.2,0.55]
[1726521494839,4.37352,2286.5,2286.2,0.55]
[1726521495041,4.37352,2286.5,2286.3,0.12001552]
[1726521495535,4.37352,2286.5,2286.4,0.11988489]
[1726521496044,4.37352,2286.5,2286.1,4.37417]
[1726521496336,1.82509404,2286.2,2285.8,5.28869401]
[1726521496537,4.37406,2286.3,2286.2,0.12014616]
[1726521496693,4.37406,2286.3,2285.9,0.55]
[1726521496895,4.37406,2286.3,2286.0,0.12040747]
[1726521497334,8.68501404,2286.4,2286.0,0.12040747]
[1726521497335,6.85992,2286.4,2286.0,0.12040747]
[1726521497538,6.85992,2286.4,2286.1,2.4566]
[1726521497737,4.37372,2286.4,2286.1,2.4566]
[1726521498034,8.74752,2286.4,2286.2,0.12014616]
[1726521498241,8.74753,2286.4,2286.2,0.12014616]
[1726521499231,8.7475,2286.4,2286.2,0.00014616]
[1726521499423,8.7475,2286.4,2286.2,0.11601552]
[1726521500024,4.37372,2286.4,2286.2,0.11601552]
[1726521502052,8.49166404,2286.6,2286.2,0.11601552]
[1726521502053,4.37352,2286.5,2286.2,0.11601552]
[1726521502363,0.0375045,2286.8,2286.4,2.3288]
[1726521502855,0.0375045,2286.8,2286.5,1.21683733]
[1726521503017,0.0375045,2286.8,2286.5,0.11566861]
[1726521503216,0.0375045,2286.8,2286.6,2.3421]
[1726521503660,0.0375045,2286.8,2286.7,0.11540742]
[1726521504743,0.0375045,2286.8,2286.7,1.94050146]
[1726521517768,0.0375045,2286.8,2286.7,0.11540742]
[1726521518064,0.0375045,2286.8,2286.5,6.19846404]
[1726521518278,0.0375045,2286.8,2286.6,0.11547034]
[1726521519834,4.17229404,2286.7,2286.6,0.11547034]
[1726521520039,4.62327394,2286.7,2286.6,0.11547034]
[1726521520236,4.62327394,2286.7,2285.9,2.2602]
[1726521520237,2.3472,2286.6,2285.9,2.2602]
[1726521520459,2.3472,2286.4,2285.8,1.82509404]
[1726521520632,2.37720005,2286.4,2285.7,2.2858]
[1726521521154,2.37720005,2286.4,2286.1,1.82509404]
[1726521521357,2.58492,2286.4,2286.1,1.82509404]
[1726521521653,2.4272,2286.7,2286.3,1.82509404]
[1726521521981,2.45720005,2286.7,2286.3,1.82509404]
[1726521522983,2.4272,2286.7,2286.5,1.82509404]
[1726521523300,0.0375045,2286.8,2286.5,1.82509404]
[1726521523961,0.316955,2286.8,2286.4,2.2591]
[1726521524279,0.316955,2286.8,2286.3,1.82509404]
[1726521525246,0.316955,2286.8,2286.3,4.82509404]
[1726521525847,0.0375045,2286.8,2286.5,4.08419404]
[1726521526451,0.0375045,2286.8,2286.6,0.11554702]
[1726521533181,0.06750455,2286.8,2286.6,0.11554702]
[1726521533363,0.319955,2286.8,2286.6,0.11554702]
[1726521533797,0.319955,2286.8,2286.4,4.82509404]
[1726521534095,0.319955,2286.8,2286.7,0.115448]
[1726521534296,0.319955,2286.8,2286.4,4.82509404]
[1726521534702,0.319955,2286.8,2286.5,0.11570919]
[1726521535301,0.03000005,2286.7,2286.5,0.11570919]
[1726521535503,2.4691,2286.6,2286.5,0.11570919]
[1726521537394,0.0375045,2286.8,2286.5,2.47240919]
[1726521538337,0.0375045,2286.8,2286.5,0.11570919]
[1726521543143,0.0375045,2286.8,2286.6,1.82509404]
[1726521543297,0.0375045,2286.8,2286.7,0.11547056]
[1726521543496,0.0375045,2286.8,2286.4,1.82509404]
[1726521543728,0.0375045,2286.8,2286.5,0.11573176]
[1726521543928,2.2507,2286.7,2286.5,0.11573176]
[1726521545712,2.47952045,2286.7,2286.5,0.11573176]
[1726521545914,2.47952045,2286.7,2286.1,7.29849404]
[1726521545915,0.03000005,2286.6,2286.1,7.29849404]
[1726521546114,2.47952045,2286.7,2286.2,1.24027189]
[1726521546323,2.47952045,2286.7,2286.2,0.11612364]
[1726521546524,0.25170249,2286.6,2286.2,0.11612364]
[1726521546743,0.0375045,2286.8,2286.2,0.11612364]
[1726521546744,0.0375045,2286.8,2286.5,6.19847404]
[1726521546956,0.0375045,2286.8,2286.7,1.82509404]
[1726521547266,0.0375045,2286.8,2286.7,1.9405646]
[1726521550103,0.49556878,2286.8,2286.7,1.9405646]
[1726521550961,0.49556878,2286.8,2286.7,16.79764367]
[1726521551107,0.0375045,2287.5,2287.4,11.76694]
[1726521551311,0.0375045,2287.5,2287.4,16.70641489]
[1726521551543,0.0375045,2287.5,2287.4,17.82863735]
[1726521551726,0.0375045,2287.5,2287.4,19.51188705]
[1726521551912,0.0375045,2287.5,2287.4,21.62992416]
[1726521552118,0.0375045,2287.5,2287.4,17.25815416]
[1726521552317,0.0375045,2287.5,2287.4,14.452682]
[1726521553033,0.0375045,2287.5,2287.4,18.824452]
[1726521553252,0.0375045,2287.5,2287.4,14.452682]
[1726521555737,0.0375045,2287.5,2287.4,0.11438085]
[1726521555944,0.0375045,2287.5,2287.4,4.057512]
[1726521558341,0.0375045,2287.5,2287.4,0.11438085]
[1726521558947,0.0375045,2287.5,2287.4,4.057512]
[1726521559150,0.0375045,2287.5,2287.4,16.351052]
[1726521559349,0.0375045,2287.5,2287.4,11.979282]
[1726521562038,0.0375045,2287.5,2287.4,14.452682]
[1726521563556,0.0375045,2287.5,2287.4,18.824452]
[1726521563738,0.0375045,2287.5,2287.4,10.080912]
[1726521563941,0.0375045,2287.5,2287.4,3.11438085]
[1726521564140,0.0375045,2287.5,2287.4,7.48615085]
[1726521564550,0.0375045,2287.5,2287.4,3.11438085]
[1726521565157,0.0375045,2287.5,2287.4,7.48615085]
[1726521565687,0.0375045,2287.5,2287.4,0.11438085]
[1726521565986,0.0375045,2287.5,2287.1,4.37221]
[1726521566285,0.0375045,2287.5,2287.4,0.11388951]
[1726521566586,0.0375045,2287.5,2287.4,0.11342074]
[1726521567085,0.49543348,2287.5,2287.2,4.37215]
[1726521567247,0.49543348,2287.5,2287.4,0.11342074]
[1726521567447,0.49543348,2287.5,2287.3,0.11355126]
[1726521567685,0.49543348,2287.5,2287.2,4.37215]
[1726521567686,0.49543348,2287.5,2287.4,0.11342074]
[1726521568052,0.49543348,2287.5,2287.2,3.0]
[1726521568266,0.49543348,2287.5,2287.4,0.11342074]
[1726521568454,0.49543348,2287.5,2287.3,0.11355126]
[1726521568663,0.49543348,2287.5,2287.4,0.11342074]
[1726521569046,0.49543348,2287.5,2287.4,4.37177]
[1726521569245,0.49543348,2287.5,2287.4,0.11342074]
[1726521570493,0.49543348,2287.5,2287.4,4.48519074]
[1726521570653,0.49543348,2287.5,2287.4,0.11342074]
[1726521571546,0.49543348,2287.5,2287.4,4.48519074]
[1726521571746,0.49543348,2287.5,2287.4,5.03519074]
[1726521572491,0.49543348,2287.5,2287.4,9.40696074]
[1726521573695,0.49543348,2287.5,2287.4,5.03519074]
[1726521575998,0.0375045,2287.5,2287.4,5.03519074]
[1726521576174,0.0375045,2287.5,2287.4,0.11342074]
[1726521576372,0.0375045,2287.5,2287.4,4.48519074]
[1726521576572,0.0375045,2287.5,2287.4,0.11342074]
[1726521578309,0.0375045,2287.5,2287.4,4.48519074]
[1726521579310,0.0375045,2287.5,2287.4,11.20966074]
[1726521579919,0.0375045,2287.5,2287.4,11.75966074]
[1726521581030,0.0375045,2287.5,2287.4,14.75966074]
[1726521586700,0.0375045,2287.5,2287.4,7.48519074]
[1726521586905,0.0375045,2287.5,2287.4,12.40696074]
[1726521590236,0.49540271,2287.5,2287.4,12.40696074]
[1726521594241,0.49540271,2287.5,2287.4,15.21533074]
[1726521594398,0.49540271,2287.5,2287.4,19.58710074]
[1726521595406,0.49540271,2287.5,2287.4,17.69633074]
[1726521595543,0.0375045,2287.5,2287.4,22.06810074]
[1726521595745,0.0375045,2287.5,2287.4,17.69633074]
[1726521595985,0.49538505,2287.5,2287.4,17.69633074]
[1726521596165,0.49538505,2287.5,2287.4,18.38103016]
[1726521596371,0.49538505,2287.5,2287.4,19.29153338]
[1726521597193,0.49538505,2287.5,2287.4,16.81053338]
[1726521597354,0.49538505,2287.5,2287.4,14.00216338]
[1726521597560,0.49538505,2287.5,2287.4,16.81513933]
[1726521601071,0.49538505,2287.5,2287.4,16.81376113]
[1726521601485,0.29538505,2287.5,2287.4,16.81376113]
[1726521601823,2.4845,2287.7,2287.6,8.74278]
[1726521601965,2.4845,2287.7,2287.6,11.68741309]
[1726521602167,2.4845,2287.7,2287.6,11.80049624]
[1726521602875,2.4845,2287.7,2287.6,10.67585714]
[1726521603062,2.4845,2287.7,2287.6,8.85586315]
[1726521604075,2.4845,2287.7,2287.6,4.48447315]
[1726521604663,2.73295,2287.7,2287.6,0.11308315]
[1726521605104,2.73295,2287.7,2287.6,4.48447315]
[1726521605283,2.4845,2287.7,2287.6,8.85586315]
[1726521605491,2.3437,2288.1,2287.7,4.37112]
[1726521605689,2.6118205,2288.1,2287.7,6.19111399]
[1726521605989,2.6118205,2288.1,2287.8,0.11282221]
[1726521606188,2.6118205,2288.1,2287.7,6.19111399]
[1726521606590,2.6118205,2288.1,2287.8,0.11282221]
[1726521606790,2.3437,2287.9,2287.6,4.37132]
[1726521607106,2.3437,2287.9,2287.7,0.11295268]
[1726521609909,2.3437,2287.9,2287.7,6.30403667]
[1726521610413,2.80157266,2287.9,2287.7,1.93294667]
[1726521611296,2.80157266,2287.9,2287.7,6.30412667]
[1726521611606,0.45787266,2287.9,2287.8,8.74202]
[1726521611986,0.45787266,2287.9,2287.8,4.48383674]
[1726521614773,2.92367266,2287.9,2287.8,0.11282674]
[1726521615178,2.92367266,2287.9,2287.7,4.37108]
[1726521615382,2.92367266,2287.9,2287.8,0.11282674]
[1726521616077,2.92367266,2287.9,2287.7,4.37108]
[1726521616273,2.92367266,2287.9,2287.8,0.11282674]
[1726521616681,2.92367266,2287.9,2287.7,4.37108]
[1726521616900,2.92367266,2287.9,2287.7,8.74219]
[1726521617114,0.45787266,2287.9,2287.8,14.70504674]
[1726521617276,0.0375045,2288.2,2288.1,12.29086]
[1726521617473,0.0375045,2288.2,2288.1,22.91766782]
[1726521617718,0.0375045,2288.2,2288.1,25.21785791]
[1726521617879,0.0375045,2288.2,2288.1,25.78609967]
[1726521618078,0.0375045,2288.2,2288.1,28.05765804]
[1726521618282,0.0375045,2288.2,2288.1,25.32963749]
[1726521618616,0.0375045,2288.2,2288.1,25.76829635]
[1726521619175,0.0375045,2288.2,2288.1,25.76848045]
[1726521619377,0.0375045,2288.2,2288.1,25.08398926]
[1726521619979,0.0375045,2288.2,2288.1,27.20464122]
[1726521620183,0.0375045,2288.2,2288.1,26.29344141]
[1726521620400,0.0375045,2288.2,2288.1,26.28532124]
[1726521621995,0.0375045,2288.2,2288.1,22.34467529]
[1726521623099,0.0375045,2288.2,2288.1,20.64538536]
[1726521624041,0.0375045,2288.2,2288.1,22.34311964]
[1726521626184,0.0375045,2288.2,2288.1,20.64538536]